[Event "Titled Tuesday Blitz April 18 Early 2023"]
[White "Rangel, Daniel"]
[Black "Mendez Fortes, Eduardo Jesus"]
[WhiteFideId "2124475"]
[BlackFideId "3502376"]
[WhiteElo "2256"]
[BlackElo "2307"]
[Result "0-1"]
[Round "04"]
[TimeControl "180+2"]
[Date "2023.04.18"]
[WhiteClock "0:00:15"]
[BlackClock "0:00:13"]

1. c4 {[%clk 0:02:22]}  e6 {[%clk 0:02:55]} 2. g3 {[%clk 0:02:23]}  d5 {[%clk 0:02:55]} 3. Bg2 {[%clk 0:02:24]}  Nf6 {[%clk 0:02:54]} 4. Nf3 {[%clk 0:02:24]}  Be7 {[%clk 0:02:47]} 5. O-O {[%clk 0:02:25]}  O-O {[%clk 0:02:46]} 6. b3 {[%clk 0:02:24]}  d4 {[%clk 0:02:46]} 7. e3 {[%clk 0:02:23]}  c5 {[%clk 0:02:47]} 8. exd4 {[%clk 0:02:22]}  cxd4 {[%clk 0:02:48]} 9. d3 {[%clk 0:02:22]}  Nc6 {[%clk 0:02:48]} 10. Bf4 {[%clk 0:02:22]}  Re8 {[%clk 0:02:42]} 11. Ne5 {[%clk 0:02:22]}  Nxe5 {[%clk 0:02:42]} 12. Bxe5 {[%clk 0:02:23]}  Bc5 {[%clk 0:02:34]} 13. Nd2 {[%clk 0:02:19]}  Nd7 {[%clk 0:02:11]} 14. Bf4 {[%clk 0:02:12]}  e5 {[%clk 0:02:07]} 15. Bd5 {[%clk 0:01:47]}  exf4 {[%clk 0:02:02]} 16. Qh5 {[%clk 0:01:47]}  Rf8 {[%clk 0:01:17]} 17. Ne4 {[%clk 0:01:41]}  Be7 {[%clk 0:01:15]} 18. Kh1 {[%clk 0:01:30]}  Nb6 {[%clk 0:00:59]} 19. gxf4 {[%clk 0:01:25]}  Nxd5 {[%clk 0:00:59]} 20. cxd5 {[%clk 0:01:26]}  g6 {[%clk 0:00:56]} 21. Rg1 {[%clk 0:01:26]}  Bf6 {[%clk 0:00:49]} 22. f5 {[%clk 0:01:24]}  Bg7 {[%clk 0:00:30]} 23. fxg6 {[%clk 0:01:20]}  fxg6 {[%clk 0:00:25]} 24. Qe2 {[%clk 0:01:00]}  Qxd5 {[%clk 0:00:24]} 25. f3 {[%clk 0:01:00]}  Bf5 {[%clk 0:00:23]} 26. Rg5 {[%clk 0:01:00]}  Rae8 {[%clk 0:00:22]} 27. Rag1 {[%clk 0:00:59]}  Bxe4 {[%clk 0:00:20]} 28. fxe4 {[%clk 0:00:54]}  Qf7 {[%clk 0:00:20]} 29. R5g2 {[%clk 0:00:49]}  Qf3 {[%clk 0:00:19]} 30. Qc2 {[%clk 0:00:49]}  Rc8 {[%clk 0:00:19]} 31. Qd2 {[%clk 0:00:48]}  Rc3 {[%clk 0:00:18]} 32. Rd1 {[%clk 0:00:42]}  Rfc8 {[%clk 0:00:18]} 33. Rg1 {[%clk 0:00:34]}  Rc2 {[%clk 0:00:14]} 34. Qg5 {[%clk 0:00:33]}  Rxg2 {[%clk 0:00:13]} 35. Qxg2 {[%clk 0:00:30]}  Qxg2+ {[%clk 0:00:11]} 36. Kxg2 {[%clk 0:00:31]}  Bh6 {[%clk 0:00:12]} 37. Kf3 {[%clk 0:00:27]}  Be3 {[%clk 0:00:11]} 38. Rg2 {[%clk 0:00:23]}  Rf8+ {[%clk 0:00:12]} 39. Kg4 {[%clk 0:00:23]}  Kg7 {[%clk 0:00:12]} 40. e5 {[%clk 0:00:22]}  Rf5 {[%clk 0:00:12]} 41. Rc2 {[%clk 0:00:20]}  Rxe5 {[%clk 0:00:10]} 42. Rc7+ {[%clk 0:00:19]}  Kh6 {[%clk 0:00:10]} 43. Rxb7 {[%clk 0:00:20]}  a5 {[%clk 0:00:10]} 44. a4 {[%clk 0:00:18]}  Bd2 {[%clk 0:00:10]} 45. Rb8 {[%clk 0:00:12]}  Bc3 {[%clk 0:00:10]} 46. Kf3 {[%clk 0:00:11]}  Re3+ {[%clk 0:00:10]} 47. Kf4 {[%clk 0:00:11]}  Rxd3 {[%clk 0:00:11]} 48. Rb5 {[%clk 0:00:11]}  Rh3 {[%clk 0:00:11]} 49. Ke4 {[%clk 0:00:10]}  Rh5 {[%clk 0:00:11]} 50. Rb7 {[%clk 0:00:09]}  Rxh2 {[%clk 0:00:11]} 51. Kd3 {[%clk 0:00:10]}  Rh3+ {[%clk 0:00:11]} 52. Kc4 {[%clk 0:00:11]}  Bb4 {[%clk 0:00:11]} 53. Rd7 {[%clk 0:00:10]}  Rc3+ {[%clk 0:00:10]} 54. Kb5 {[%clk 0:00:10]}  Rxb3 {[%clk 0:00:11]} 55. Rxd4 {[%clk 0:00:08]}  Bc3+ {[%clk 0:00:11]} 56. Kc4 {[%clk 0:00:09]}  Bxd4 {[%clk 0:00:11]} 57. Kxb3 {[%clk 0:00:09]}  Bc5 {[%clk 0:00:11]} 58. Kc4 {[%clk 0:00:09]}  Bb4 {[%clk 0:00:12]} 59. Kb5 {[%clk 0:00:10]}  Kg5 {[%clk 0:00:13]} 60. Kc4 {[%clk 0:00:11]}  h5 {[%clk 0:00:14]} 61. Kd3 {[%clk 0:00:11]}  Kf4 {[%clk 0:00:15]} 62. Ke2 {[%clk 0:00:11]}  g5 {[%clk 0:00:16]} 63. Kf1 {[%clk 0:00:12]}  h4 {[%clk 0:00:17]} 64. Kg2 {[%clk 0:00:13]}  g4 {[%clk 0:00:18]} 65. Kh1 {[%clk 0:00:14]}  Kf3 {[%clk 0:00:14]} 66. Kg1 {[%clk 0:00:15]}  g3 {[%clk 0:00:14]} 67. Kh1 {[%clk 0:00:14]}  g2+ {[%clk 0:00:14]} 68. Kh2 {[%clk 0:00:15]}  Bd6+ {[%clk 0:00:13]} 69. Kh3 {[%clk 0:00:15]}  g1=Q {[%clk 0:00:12]} 70. Kxh4 {[%clk 0:00:15]}  Qg4# {[%clk 0:00:13]} 0-1


[Site "https://www.chess.com"]

[Event "Titled Tuesday Blitz April 18 Early 2023"]
[White "Tregubov, Pavel V."]
[Black "crosky"]
[WhiteFideId "4115341"]
[WhiteElo "2425"]
[BlackElo "2360"]
[Result "1-0"]
[Round "04"]
[TimeControl "180+2"]
[Date "2023.04.18"]
[WhiteClock "0:02:18"]
[BlackClock "0:00:35"]

1. e4 {[%clk 0:02:57]}  c6 {[%clk 0:03:00]} 2. Nf3 {[%clk 0:02:57]}  d5 {[%clk 0:03:01]} 3. Nc3 {[%clk 0:02:57]}  dxe4 {[%clk 0:03:01]} 4. Nxe4 {[%clk 0:02:56]}  Nf6 {[%clk 0:03:02]} 5. Qe2 {[%clk 0:02:57]}  Nxe4 {[%clk 0:03:01]} 6. Qxe4 {[%clk 0:02:57]}  Nd7 {[%clk 0:03:02]} 7. Bc4 {[%clk 0:02:54]}  Nf6 {[%clk 0:03:02]} 8. Ne5 {[%clk 0:02:55]}  e6 {[%clk 0:03:03]} 9. Qf4 {[%clk 0:02:55]}  Bd6 {[%clk 0:02:48]} 10. d4 {[%clk 0:02:55]}  b5 {[%clk 0:02:47]} 11. Bd3 {[%clk 0:02:54]}  Qc7 {[%clk 0:02:43]} 12. O-O {[%clk 0:02:49]}  O-O {[%clk 0:02:36]} 13. Re1 {[%clk 0:02:47]}  Bb7 {[%clk 0:02:32]} 14. Qg3 {[%clk 0:02:46]}  Kh8 {[%clk 0:02:17]} 15. Qh4 {[%clk 0:02:33]}  h5 {[%clk 0:01:12]} 16. Bg5 {[%clk 0:02:27]}  Qe7 {[%clk 0:00:35]} 17. Ng4 {[%clk 0:02:18]} 1-0


[Site "https://www.chess.com"]

[Event "Titled Tuesday Blitz April 18 Early 2023"]
[White "Danielyan, Vahe"]
[Black "Schuh, Karsten"]
[WhiteFideId "13304828"]
[BlackFideId "4637950"]
[WhiteElo "2423"]
[BlackElo "2138"]
[Result "1/2-1/2"]
[Round "04"]
[TimeControl "180+2"]
[Date "2023.04.18"]
[WhiteClock "0:00:04"]
[BlackClock "0:00:06"]

1. d4 {[%clk 0:02:59]}  f5 {[%clk 0:03:00]} 2. g4 {[%clk 0:02:57]}  d5 {[%clk 0:02:59]} 3. gxf5 {[%clk 0:02:50]}  Bxf5 {[%clk 0:02:58]} 4. c4 {[%clk 0:02:47]}  Nf6 {[%clk 0:02:54]} 5. Nc3 {[%clk 0:02:45]}  e6 {[%clk 0:02:53]} 6. Nf3 {[%clk 0:02:44]}  Nc6 {[%clk 0:02:52]} 7. Bf4 {[%clk 0:02:40]}  Bb4 {[%clk 0:02:50]} 8. Rg1 {[%clk 0:02:36]}  O-O {[%clk 0:02:30]} 9. e3 {[%clk 0:02:29]}  Ne4 {[%clk 0:02:21]} 10. Rc1 {[%clk 0:02:26]}  a5 {[%clk 0:02:04]} 11. Bd3 {[%clk 0:02:18]}  Nxc3 {[%clk 0:02:01]} 12. bxc3 {[%clk 0:02:17]}  Bd6 {[%clk 0:01:58]} 13. Bxd6 {[%clk 0:01:59]}  Qxd6 {[%clk 0:01:54]} 14. c5 {[%clk 0:01:57]}  Qe7 {[%clk 0:01:49]} 15. Rg3 {[%clk 0:01:53]}  Rad8 {[%clk 0:01:42]} 16. Bb5 {[%clk 0:01:51]}  Nb8 {[%clk 0:01:34]} 17. Ne5 {[%clk 0:01:49]}  c6 {[%clk 0:01:34]} 18. Be2 {[%clk 0:01:37]}  Nd7 {[%clk 0:01:33]} 19. Nxd7 {[%clk 0:01:36]}  Rxd7 {[%clk 0:01:33]} 20. Kd2 {[%clk 0:01:37]}  e5 {[%clk 0:01:33]} 21. Qg1 {[%clk 0:01:31]}  exd4 {[%clk 0:01:19]} 22. cxd4 {[%clk 0:01:32]}  Bg6 {[%clk 0:01:11]} 23. h4 {[%clk 0:01:17]}  b6 {[%clk 0:01:09]} 24. h5 {[%clk 0:01:16]}  Bf5 {[%clk 0:01:07]} 25. cxb6 {[%clk 0:00:35]}  Qb4+ {[%clk 0:01:06]} 26. Kd1 {[%clk 0:00:35]}  Qxb6 {[%clk 0:01:04]} 27. Qe1 {[%clk 0:00:19]}  a4 {[%clk 0:01:00]} 28. Qc3 {[%clk 0:00:19]}  Rc7 {[%clk 0:00:52]} 29. Qc5 {[%clk 0:00:18]}  Qxc5 {[%clk 0:00:51]} 30. Rxc5 {[%clk 0:00:19]}  Bd7 {[%clk 0:00:49]} 31. Bf3 {[%clk 0:00:16]}  Rb7 {[%clk 0:00:48]} 32. Rxd5 {[%clk 0:00:11]}  Bc8 {[%clk 0:00:28]} 33. Rc5 {[%clk 0:00:09]}  Rxf3 {[%clk 0:00:28]} 34. Rxf3 {[%clk 0:00:06]}  Bg4 {[%clk 0:00:27]} 35. Rf5 {[%clk 0:00:05]}  Bxf3+ {[%clk 0:00:20]} 36. Rxf3 {[%clk 0:00:04]}  Rb2 {[%clk 0:00:20]} 37. e4 {[%clk 0:00:02]}  Rxa2 {[%clk 0:00:20]} 38. e5 {[%clk 0:00:03]}  Rb2 {[%clk 0:00:18]} 39. e6 {[%clk 0:00:02]}  Rb8 {[%clk 0:00:17]} 40. Kc2 {[%clk 0:00:01]}  Re8 {[%clk 0:00:16]} 41. Re3 {[%clk 0:00:02]}  Kf8 {[%clk 0:00:16]} 42. f4 {[%clk 0:00:03]}  Ke7 {[%clk 0:00:16]} 43. f5 {[%clk 0:00:03]}  Kf6 {[%clk 0:00:16]} 44. Re5 {[%clk 0:00:04]}  Ke7 {[%clk 0:00:12]} 45. Kb2 {[%clk 0:00:03]}  Rd8 {[%clk 0:00:12]} 46. Kc3 {[%clk 0:00:03]}  a3 {[%clk 0:00:12]} 47. Ra5 {[%clk 0:00:04]}  Kf6 {[%clk 0:00:09]} 48. Ra7 {[%clk 0:00:05]}  a2 {[%clk 0:00:08]} 49. Rf7+ {[%clk 0:00:04]}  Kg5 {[%clk 0:00:09]} 50. Rxg7+ {[%clk 0:00:05]}  Kxf5 {[%clk 0:00:09]} 51. Kb2 {[%clk 0:00:04]}  Ra8 {[%clk 0:00:07]} 52. Ka1 {[%clk 0:00:04]}  Kxe6 {[%clk 0:00:07]} 53. Rxh7 {[%clk 0:00:05]}  Kf6 {[%clk 0:00:07]} 54. Rd7 {[%clk 0:00:05]}  Kg5 {[%clk 0:00:07]} 55. Rd6 {[%clk 0:00:04]}  Kxh5 {[%clk 0:00:07]} 56. Rxc6 {[%clk 0:00:05]}  Kg5 {[%clk 0:00:08]} 57. Re6 {[%clk 0:00:04]}  Kf5 {[%clk 0:00:08]} 58. Re5+ {[%clk 0:00:05]}  Kf6 {[%clk 0:00:08]} 59. Re2 {[%clk 0:00:05]}  Kf7 {[%clk 0:00:08]} 60. d5 {[%clk 0:00:04]}  Rd8 {[%clk 0:00:07]} 61. Re5 {[%clk 0:00:03]}  Kf6 {[%clk 0:00:07]} 62. Re6+ {[%clk 0:00:04]}  Kf7 {[%clk 0:00:07]} 63. Re5 {[%clk 0:00:04]}  Kf6 {[%clk 0:00:07]} 64. Rh5 {[%clk 0:00:04]}  Ke7 {[%clk 0:00:07]} 65. Kxa2 {[%clk 0:00:04]}  Kd6 {[%clk 0:00:07]} 66. Kb3 {[%clk 0:00:05]}  Kc5 {[%clk 0:00:07]} 67. d6+ {[%clk 0:00:03]}  Kxd6 {[%clk 0:00:07]} 68. Kc4 {[%clk 0:00:04]}  Rg8 {[%clk 0:00:07]} 69. Rh6+ {[%clk 0:00:04]}  Ke5 {[%clk 0:00:07]} 70. Rh5+ {[%clk 0:00:05]}  Kd6 {[%clk 0:00:07]} 71. Rd5+ {[%clk 0:00:05]}  Ke6 {[%clk 0:00:07]} 72. Rd4 {[%clk 0:00:06]}  Rg5 {[%clk 0:00:06]} 73. Rd3 {[%clk 0:00:04]} 1/2-1/2


[Site "https://www.chess.com"]

[Event "Titled Tuesday Blitz April 18 Early 2023"]
[White "chessjazda"]
[Black "Sadykov, Ramil"]
[BlackFideId "24113590"]
[WhiteElo "2332"]
[BlackElo "2245"]
[Result "0-1"]
[Round "04"]
[TimeControl "180+2"]
[Date "2023.04.18"]
[WhiteClock "0:00:06"]
[BlackClock "0:00:13"]

1. e4 {[%clk 0:03:00]}  e5 {[%clk 0:02:58]} 2. Nf3 {[%clk 0:03:00]}  Nf6 {[%clk 0:02:59]} 3. Nc3 {[%clk 0:02:59]}  Bb4 {[%clk 0:02:58]} 4. Bc4 {[%clk 0:02:57]}  Bxc3 {[%clk 0:02:53]} 5. dxc3 {[%clk 0:02:57]}  d6 {[%clk 0:02:54]} 6. Bg5 {[%clk 0:02:46]}  Be6 {[%clk 0:02:50]} 7. Qe2 {[%clk 0:02:39]}  Nbd7 {[%clk 0:02:46]} 8. O-O-O {[%clk 0:02:37]}  h6 {[%clk 0:02:46]} 9. Bxf6 {[%clk 0:02:35]}  Qxf6 {[%clk 0:02:44]} 10. a3 {[%clk 0:02:16]}  O-O {[%clk 0:02:22]} 11. Rhe1 {[%clk 0:02:15]}  Bg4 {[%clk 0:02:18]} 12. Rd3 {[%clk 0:02:07]}  Nc5 {[%clk 0:02:13]} 13. Re3 {[%clk 0:02:04]}  Ne6 {[%clk 0:02:13]} 14. Bxe6 {[%clk 0:01:59]}  Qxe6 {[%clk 0:01:57]} 15. Kb1 {[%clk 0:01:57]}  Kh8 {[%clk 0:01:39]} 16. h3 {[%clk 0:01:57]}  Bh5 {[%clk 0:01:39]} 17. g4 {[%clk 0:01:56]}  Bg6 {[%clk 0:01:39]} 18. Nh4 {[%clk 0:01:56]}  Kh7 {[%clk 0:01:26]} 19. Nf5 {[%clk 0:01:53]}  f6 {[%clk 0:01:24]} 20. Rg3 {[%clk 0:01:52]}  Bf7 {[%clk 0:01:24]} 21. b3 {[%clk 0:01:35]}  g6 {[%clk 0:01:17]} 22. Ne3 {[%clk 0:01:32]}  a5 {[%clk 0:01:12]} 23. Kb2 {[%clk 0:01:00]}  a4 {[%clk 0:01:11]} 24. Qd1 {[%clk 0:00:53]}  c6 {[%clk 0:00:58]} 25. Re2 {[%clk 0:00:35]}  Rfd8 {[%clk 0:00:53]} 26. Rd2 {[%clk 0:00:34]}  b5 {[%clk 0:00:49]} 27. h4 {[%clk 0:00:29]}  Rd7 {[%clk 0:00:45]} 28. g5 {[%clk 0:00:28]}  fxg5 {[%clk 0:00:41]} 29. hxg5 {[%clk 0:00:28]}  h5 {[%clk 0:00:41]} 30. Ng2 {[%clk 0:00:22]}  axb3 {[%clk 0:00:31]} 31. cxb3 {[%clk 0:00:21]}  d5 {[%clk 0:00:31]} 32. exd5 {[%clk 0:00:20]}  cxd5 {[%clk 0:00:28]} 33. Re3 {[%clk 0:00:20]}  Qf5 {[%clk 0:00:25]} 34. Nh4 {[%clk 0:00:16]}  Qxg5 {[%clk 0:00:25]} 35. Nf3 {[%clk 0:00:16]}  Qf6 {[%clk 0:00:22]} 36. Nxe5 {[%clk 0:00:17]}  Rda7 {[%clk 0:00:19]} 37. a4 {[%clk 0:00:13]}  bxa4 {[%clk 0:00:19]} 38. b4 {[%clk 0:00:12]}  a3+ {[%clk 0:00:18]} 39. Ka1 {[%clk 0:00:12]}  Bg8 {[%clk 0:00:17]} 40. f4 {[%clk 0:00:11]}  a2 {[%clk 0:00:15]} 41. Rh2 {[%clk 0:00:09]}  Qf5 {[%clk 0:00:14]} 42. Qd2 {[%clk 0:00:06]}  Qb1# {[%clk 0:00:13]} 0-1


[Site "https://www.chess.com"]

[Event "Titled Tuesday Blitz April 18 Early 2023"]
[White "Zarubitski, Viachaslau"]
[Black "Ardila, Oscar Humberto"]
[WhiteFideId "13509373"]
[BlackFideId "4404742"]
[WhiteElo "2284"]
[BlackElo "1918"]
[Result "1-0"]
[Round "04"]
[TimeControl "180+2"]
[Date "2023.04.18"]
[WhiteClock "0:00:58"]
[BlackClock "0:00:56"]

1. f4 {[%clk 0:03:00]}  Nf6 {[%clk 0:02:58]} 2. Nf3 {[%clk 0:03:01]}  d6 {[%clk 0:02:58]} 3. g3 {[%clk 0:03:01]}  g6 {[%clk 0:02:59]} 4. Bg2 {[%clk 0:03:01]}  Bg7 {[%clk 0:02:59]} 5. O-O {[%clk 0:03:01]}  O-O {[%clk 0:02:59]} 6. c4 {[%clk 0:03:02]}  Nbd7 {[%clk 0:03:00]} 7. Nc3 {[%clk 0:03:02]}  c6 {[%clk 0:03:00]} 8. d3 {[%clk 0:02:57]}  Qb6+ {[%clk 0:02:58]} 9. Kh1 {[%clk 0:02:53]}  Ng4 {[%clk 0:02:55]} 10. d4 {[%clk 0:02:50]}  Qb4 {[%clk 0:02:33]} 11. e4 {[%clk 0:02:33]}  Qxc4 {[%clk 0:02:26]} 12. Nd2 {[%clk 0:02:32]}  Qb4 {[%clk 0:02:24]} 13. Qxg4 {[%clk 0:02:30]}  Bxd4 {[%clk 0:02:17]} 14. Qe2 {[%clk 0:02:25]}  Bxc3 {[%clk 0:01:53]} 15. bxc3 {[%clk 0:02:24]}  Qxc3 {[%clk 0:01:54]} 16. Rb1 {[%clk 0:02:22]}  Nc5 {[%clk 0:01:45]} 17. Bb2 {[%clk 0:02:18]}  Qa5 {[%clk 0:01:36]} 18. Nc4 {[%clk 0:02:14]}  Qxa2 {[%clk 0:01:28]} 19. f5 {[%clk 0:02:09]}  b5 {[%clk 0:01:19]} 20. Ne3 {[%clk 0:02:07]}  Bd7 {[%clk 0:01:04]} 21. Ng4 {[%clk 0:00:58]}  Qc4 {[%clk 0:00:56]} 22. Nh6# {[%clk 0:00:58]} 1-0


[Site "https://www.chess.com"]

[Event "Titled Tuesday Blitz April 18 Early 2023"]
[White "Anton Guijarro, David"]
[Black "Lorenzo De La Riva, Lazaro"]
[WhiteFideId "2285525"]
[BlackFideId "2268809"]
[WhiteElo "2618"]
[BlackElo "2294"]
[Result "1-0"]
[Round "04"]
[TimeControl "180+2"]
[Date "2023.04.18"]
[WhiteClock "0:00:48"]
[BlackClock "0:00:07"]

1. Nf3 {[%clk 0:03:00]}  g6 {[%clk 0:02:58]} 2. h4 {[%clk 0:03:00]}  Nf6 {[%clk 0:02:56]} 3. d4 {[%clk 0:02:58]}  d5 {[%clk 0:02:53]} 4. c4 {[%clk 0:02:55]}  c6 {[%clk 0:02:51]} 5. cxd5 {[%clk 0:02:53]}  cxd5 {[%clk 0:02:51]} 6. Nc3 {[%clk 0:02:53]}  Nc6 {[%clk 0:02:43]} 7. Bf4 {[%clk 0:02:53]}  Bg7 {[%clk 0:02:18]} 8. e3 {[%clk 0:02:53]}  O-O {[%clk 0:02:17]} 9. Be2 {[%clk 0:02:51]}  Bf5 {[%clk 0:02:15]} 10. O-O {[%clk 0:02:50]}  Ne4 {[%clk 0:02:14]} 11. Rc1 {[%clk 0:02:38]}  Nxc3 {[%clk 0:02:11]} 12. Rxc3 {[%clk 0:02:37]}  Qa5 {[%clk 0:02:00]} 13. Qb3 {[%clk 0:02:36]}  Qb4 {[%clk 0:01:36]} 14. Rfc1 {[%clk 0:02:36]}  Qxb3 {[%clk 0:01:28]} 15. Rxb3 {[%clk 0:02:37]}  Bc8 {[%clk 0:01:20]} 16. h5 {[%clk 0:02:34]}  e6 {[%clk 0:01:02]} 17. h6 {[%clk 0:02:34]}  Bf6 {[%clk 0:01:01]} 18. Ne5 {[%clk 0:02:25]}  Bxe5 {[%clk 0:00:56]} 19. Bxe5 {[%clk 0:02:26]}  f6 {[%clk 0:00:48]} 20. Bg3 {[%clk 0:02:22]}  Rf7 {[%clk 0:00:35]} 21. a3 {[%clk 0:02:11]}  a6 {[%clk 0:00:25]} 22. Rb6 {[%clk 0:02:06]}  Na5 {[%clk 0:00:14]} 23. b4 {[%clk 0:01:41]}  Nc4 {[%clk 0:00:13]} 24. Bxc4 {[%clk 0:01:41]}  dxc4 {[%clk 0:00:14]} 25. Rxc4 {[%clk 0:01:42]}  Kf8 {[%clk 0:00:14]} 26. e4 {[%clk 0:01:33]}  Ke8 {[%clk 0:00:14]} 27. Bd6 {[%clk 0:01:25]}  Rd7 {[%clk 0:00:12]} 28. e5 {[%clk 0:01:24]}  f5 {[%clk 0:00:10]} 29. a4 {[%clk 0:01:20]}  g5 {[%clk 0:00:09]} 30. Rc3 {[%clk 0:01:16]}  Kf7 {[%clk 0:00:09]} 31. Rg3 {[%clk 0:01:16]}  Kg6 {[%clk 0:00:08]} 32. d5 {[%clk 0:01:09]}  Rf7 {[%clk 0:00:06]} 33. Bc5 {[%clk 0:01:03]}  f4 {[%clk 0:00:06]} 34. dxe6 {[%clk 0:00:54]}  fxg3 {[%clk 0:00:06]} 35. exf7+ {[%clk 0:00:54]}  Kxf7 {[%clk 0:00:07]} 36. Rf6+ {[%clk 0:00:52]}  Ke8 {[%clk 0:00:07]} 37. e6 {[%clk 0:00:52]}  Bxe6 {[%clk 0:00:06]} 38. Rxe6+ {[%clk 0:00:51]}  Kd7 {[%clk 0:00:07]} 39. Re7+ {[%clk 0:00:50]}  Kc6 {[%clk 0:00:08]} 40. Rxh7 {[%clk 0:00:49]}  b6 {[%clk 0:00:08]} 41. Be3 {[%clk 0:00:49]}  gxf2+ {[%clk 0:00:09]} 42. Kxf2 {[%clk 0:00:49]}  Rf8+ {[%clk 0:00:08]} 43. Ke2 {[%clk 0:00:48]}  Rf6 {[%clk 0:00:07]} 44. Rh8 {[%clk 0:00:48]} 1-0


[Site "https://www.chess.com"]

[Event "Titled Tuesday Blitz April 18 Early 2023"]
[White "Molina, Roberto Junio Brito"]
[Black "Gil Alba, Hector Luis"]
[WhiteFideId "2109450"]
[BlackFideId "3504670"]
[WhiteElo "2376"]
[BlackElo "2331"]
[Result "0-1"]
[Round "04"]
[TimeControl "180+2"]
[Date "2023.04.18"]
[WhiteClock "0:01:38"]
[BlackClock "0:01:02"]

1. d4 {[%clk 0:03:00]}  Nf6 {[%clk 0:02:58]} 2. c4 {[%clk 0:03:01]}  e5 {[%clk 0:02:58]} 3. dxe5 {[%clk 0:03:01]}  Ng4 {[%clk 0:02:58]} 4. Bf4 {[%clk 0:03:01]}  g5 {[%clk 0:02:57]} 5. Bg3 {[%clk 0:03:01]}  Bg7 {[%clk 0:02:57]} 6. Nf3 {[%clk 0:03:01]}  Nc6 {[%clk 0:02:57]} 7. Nc3 {[%clk 0:03:00]}  Ngxe5 {[%clk 0:02:54]} 8. Nxe5 {[%clk 0:02:59]}  Nxe5 {[%clk 0:02:54]} 9. e3 {[%clk 0:02:55]}  d6 {[%clk 0:02:53]} 10. Qc2 {[%clk 0:02:55]}  Be6 {[%clk 0:02:50]} 11. b3 {[%clk 0:02:54]}  Qd7 {[%clk 0:02:26]} 12. h4 {[%clk 0:02:48]}  h6 {[%clk 0:02:22]} 13. hxg5 {[%clk 0:02:33]}  hxg5 {[%clk 0:02:22]} 14. Rxh8+ {[%clk 0:02:34]}  Bxh8 {[%clk 0:02:22]} 15. Rd1 {[%clk 0:02:34]}  O-O-O {[%clk 0:02:18]} 16. Nd5 {[%clk 0:02:34]}  f5 {[%clk 0:02:12]} 17. Be2 {[%clk 0:02:22]}  c6 {[%clk 0:01:26]} 18. f4 {[%clk 0:02:13]}  Ng4 {[%clk 0:01:13]} 19. Bxg4 {[%clk 0:02:13]}  fxg4 {[%clk 0:01:12]} 20. fxg5 {[%clk 0:02:05]}  cxd5 {[%clk 0:01:06]} 21. cxd5+ {[%clk 0:02:05]}  Kb8 {[%clk 0:01:06]} 22. dxe6 {[%clk 0:02:04]}  Qxe6 {[%clk 0:01:07]} 23. Bf4 {[%clk 0:01:50]}  Be5 {[%clk 0:01:04]} 24. Qe4 {[%clk 0:01:38]}  Bc3+ {[%clk 0:01:02]} 0-1


[Site "https://www.chess.com"]

[Event "Titled Tuesday Blitz April 18 Early 2023"]
[White "Amilal Munkhdalai"]
[Black "Ciorgovean, Iustin"]
[WhiteFideId "4903250"]
[BlackFideId "1242911"]
[WhiteElo "2293"]
[BlackElo "2186"]
[Result "1-0"]
[Round "04"]
[TimeControl "180+2"]
[Date "2023.04.18"]
[WhiteClock "0:00:24"]
[BlackClock "0:00:03"]

1. e4 {[%clk 0:03:00]}  c6 {[%clk 0:02:59]} 2. Nf3 {[%clk 0:03:00]}  d5 {[%clk 0:03:00]} 3. Nc3 {[%clk 0:03:00]}  dxe4 {[%clk 0:02:58]} 4. Nxe4 {[%clk 0:03:01]}  Nf6 {[%clk 0:02:59]} 5. Ng3 {[%clk 0:02:58]}  h5 {[%clk 0:02:53]} 6. h3 {[%clk 0:02:57]}  h4 {[%clk 0:02:53]} 7. Ne2 {[%clk 0:02:57]}  Bf5 {[%clk 0:02:19]} 8. d3 {[%clk 0:02:56]}  e6 {[%clk 0:02:09]} 9. Nc3 {[%clk 0:02:49]}  Be7 {[%clk 0:02:07]} 10. Be2 {[%clk 0:02:45]}  Nbd7 {[%clk 0:02:04]} 11. Be3 {[%clk 0:02:44]}  Nd5 {[%clk 0:01:57]} 12. Nxd5 {[%clk 0:02:43]}  exd5 {[%clk 0:01:57]} 13. Qd2 {[%clk 0:02:42]}  Nc5 {[%clk 0:01:48]} 14. O-O-O {[%clk 0:02:37]}  Ne6 {[%clk 0:01:47]} 15. Nd4 {[%clk 0:02:34]}  Nxd4 {[%clk 0:01:44]} 16. Bxd4 {[%clk 0:02:35]}  Bf6 {[%clk 0:01:44]} 17. Qf4 {[%clk 0:02:28]}  Bxd4 {[%clk 0:01:40]} 18. Qxd4 {[%clk 0:02:28]}  Qf6 {[%clk 0:01:31]} 19. Qxf6 {[%clk 0:02:27]}  gxf6 {[%clk 0:01:32]} 20. g4 {[%clk 0:02:18]}  hxg3 {[%clk 0:01:28]} 21. fxg3 {[%clk 0:02:18]}  Ke7 {[%clk 0:01:18]} 22. h4 {[%clk 0:02:18]}  Rag8 {[%clk 0:01:17]} 23. Rdg1 {[%clk 0:02:16]}  Bg4 {[%clk 0:01:17]} 24. Kd2 {[%clk 0:02:15]}  f5 {[%clk 0:01:18]} 25. Ke3 {[%clk 0:02:11]}  Bxe2 {[%clk 0:01:16]} 26. Kxe2 {[%clk 0:02:11]}  Rg4 {[%clk 0:01:16]} 27. Kf3 {[%clk 0:02:10]}  Kf6 {[%clk 0:01:17]} 28. Rg2 {[%clk 0:02:08]}  Rhg8 {[%clk 0:01:11]} 29. Rhg1 {[%clk 0:02:02]}  a5 {[%clk 0:01:10]} 30. a3 {[%clk 0:02:02]}  a4 {[%clk 0:01:10]} 31. Rh2 {[%clk 0:01:52]}  f4 {[%clk 0:01:07]} 32. Rh3 {[%clk 0:01:37]}  Kf5 {[%clk 0:01:03]} 33. Rg2 {[%clk 0:01:33]}  Rh8 {[%clk 0:00:55]} 34. h5 {[%clk 0:01:18]}  fxg3 {[%clk 0:00:50]} 35. Rgxg3 {[%clk 0:01:16]}  Rxg3+ {[%clk 0:00:50]} 36. Kxg3 {[%clk 0:01:17]}  Kg5 {[%clk 0:00:50]} 37. Rh4 {[%clk 0:01:17]}  Rxh5 {[%clk 0:00:46]} 38. Rxa4 {[%clk 0:01:17]}  Rh1 {[%clk 0:00:47]} 39. Ra7 {[%clk 0:01:15]}  Rc1 {[%clk 0:00:47]} 40. c3 {[%clk 0:01:09]}  b5 {[%clk 0:00:40]} 41. Rxf7 {[%clk 0:01:09]}  Rc2 {[%clk 0:00:40]} 42. Rf2 {[%clk 0:01:09]}  Rc1 {[%clk 0:00:39]} 43. d4 {[%clk 0:01:09]}  Rb1 {[%clk 0:00:38]} 44. Kh3 {[%clk 0:00:58]}  Kh5 {[%clk 0:00:35]} 45. Kg3 {[%clk 0:00:41]}  Kg5 {[%clk 0:00:35]} 46. Kf3 {[%clk 0:00:40]}  Kf5 {[%clk 0:00:33]} 47. Ke3+ {[%clk 0:00:41]}  Ke6 {[%clk 0:00:32]} 48. Rh2 {[%clk 0:00:41]}  Kd6 {[%clk 0:00:30]} 49. Kd3 {[%clk 0:00:42]}  Kc7 {[%clk 0:00:29]} 50. Kc2 {[%clk 0:00:36]}  Rg1 {[%clk 0:00:28]} 51. b3 {[%clk 0:00:28]}  Kb6 {[%clk 0:00:26]} 52. a4 {[%clk 0:00:26]}  bxa4 {[%clk 0:00:23]} 53. bxa4 {[%clk 0:00:27]}  Rf1 {[%clk 0:00:16]} 54. Rh6 {[%clk 0:00:26]}  Ra1 {[%clk 0:00:06]} 55. Kb3 {[%clk 0:00:26]}  Kb7 {[%clk 0:00:04]} 56. Kb4 {[%clk 0:00:25]}  Kb6 {[%clk 0:00:05]} 57. a5+ {[%clk 0:00:25]}  Kb7 {[%clk 0:00:05]} 58. Rh7+ {[%clk 0:00:24]}  Ka6 {[%clk 0:00:03]} 59. Rc7 {[%clk 0:00:24]} 1-0


[Site "https://www.chess.com"]